[Event "Late-Titled-Tuesday-Blitz-June-25-2024"]
[Site "Chess.com"]
[Date "2024.06.25"]
[Round "4"]
[White "rdarruda"]
[Black "Big_Finky"]
[Result "1-0"]
[WhiteElo "2555"]
[BlackElo "2347"]
[TimeControl "180+1"]
[EndTime "14:35:03 PDT"]
[Termination "rdarruda won by resignation"]

1. d4 {[%clk 0:02:28.8]} 1... d5 {[%clk 0:02:59.8]} 2. Nf3 {[%clk 0:02:28.7]}
2... Nf6 {[%clk 0:03:00]} 3. e3 {[%clk 0:02:28.7]} 3... e6 {[%clk 0:03:00.3]} 4.
c4 {[%clk 0:02:29.1]} 4... Be7 {[%clk 0:02:59.3]} 5. Bd3 {[%clk 0:02:29.4]} 5...
O-O {[%clk 0:02:59.2]} 6. Nc3 {[%clk 0:02:29.4]} 6... c6 {[%clk 0:02:51.1]} 7.
O-O {[%clk 0:02:28.8]} 7... dxc4 {[%clk 0:02:40.8]} 8. Bxc4 {[%clk 0:02:27.4]}
8... b5 {[%clk 0:02:41.2]} 9. Bb3 {[%clk 0:02:27.4]} 9... a6 {[%clk 0:02:40]}
10. e4 {[%clk 0:02:24.5]} 10... c5 {[%clk 0:02:39.8]} 11. e5 {[%clk 0:02:23.5]}
11... Nfd7 {[%clk 0:02:04]} 12. d5 {[%clk 0:02:19.7]} 12... exd5 {[%clk
0:02:04]} 13. Nxd5 {[%clk 0:02:19.4]} 13... Bb7 {[%clk 0:01:57.7]} 14. Nxe7+
{[%clk 0:02:15.8]} 14... Qxe7 {[%clk 0:01:58.6]} 15. Bg5 {[%clk 0:02:15.1]}
15... Qe8 {[%clk 0:01:44.8]} 16. Re1 {[%clk 0:02:15]} 16... c4 {[%clk
0:01:44.7]} 17. Bc2 {[%clk 0:02:13.8]} 17... Nc6 {[%clk 0:01:40.4]} 18. Qd6
{[%clk 0:02:07.4]} 18... Qe6 {[%clk 0:01:21]} 19. Rad1 {[%clk 0:02:00.8]} 19...
Qxd6 {[%clk 0:00:43]} 20. exd6 {[%clk 0:01:57.9]} 20... Rfe8 {[%clk 0:00:39.9]}
21. Bf5 {[%clk 0:01:48]} 21... Nc5 {[%clk 0:00:17.7]} 22. Rxe8+ {[%clk
0:01:38.7]} 22... Rxe8 {[%clk 0:00:17.3]} 23. d7 {[%clk 0:01:39.3]} 1-0

[Event "Late-Titled-Tuesday-Blitz-June-25-2024"]
[Site "Chess.com"]
[Date "2024.06.25"]
[Round "4"]
[White "Alexander_Khlebovich"]
[Black "theoneandonlydaaevik"]
[Result "1-0"]
[WhiteElo "2823"]
[BlackElo "2595"]
[TimeControl "180+1"]
[EndTime "14:35:23 PDT"]
[Termination "Alexander_Khlebovich won by resignation"]

1. d4 {[%clk 0:03:00.9]} 1... Nf6 {[%clk 0:02:56.2]} 2. c4 {[%clk 0:03:00.9]}
2... g6 {[%clk 0:02:56]} 3. Nf3 {[%clk 0:03:01.1]} 3... Bg7 {[%clk 0:02:55.6]}
4. g3 {[%clk 0:03:01.5]} 4... d5 {[%clk 0:02:55.2]} 5. cxd5 {[%clk 0:03:00.6]}
5... Nxd5 {[%clk 0:02:56.1]} 6. Bg2 {[%clk 0:03:01.2]} 6... Nb6 {[%clk
0:02:56.5]} 7. O-O {[%clk 0:03:01.2]} 7... Nc6 {[%clk 0:02:57.1]} 8. Nc3 {[%clk
0:03:01.8]} 8... Nxd4 {[%clk 0:02:52.2]} 9. Nxd4 {[%clk 0:03:02.7]} 9... Qxd4
{[%clk 0:02:52.3]} 10. Nb5 {[%clk 0:03:02.5]} 10... Qc5 {[%clk 0:02:28.5]} 11.
a4 {[%clk 0:02:59.7]} 11... O-O {[%clk 0:02:24.7]} 12. Be3 {[%clk 0:02:58.1]}
12... Qc4 {[%clk 0:02:23]} 13. b3 {[%clk 0:02:44.5]} 13... Qb4 {[%clk
0:02:14.1]} 14. Rc1 {[%clk 0:02:20.6]} 14... Be6 {[%clk 0:02:02]} 15. Bc5 {[%clk
0:02:11.3]} 15... Qxb3 {[%clk 0:01:58.1]} 16. Nxc7 {[%clk 0:02:09.5]} 16... Rac8
{[%clk 0:01:37.3]} 17. Bxe7 {[%clk 0:01:58.2]} 17... Qxd1 {[%clk 0:01:29.2]} 18.
Rfxd1 {[%clk 0:01:52.2]} 18... Bb2 {[%clk 0:01:19.5]} 19. Bxf8 {[%clk
0:01:35.1]} 19... Bxc1 {[%clk 0:01:17.5]} 20. Rxc1 {[%clk 0:01:31.4]} 20... Rxf8
{[%clk 0:01:14.6]} 21. a5 {[%clk 0:01:26.7]} 21... Nd7 {[%clk 0:01:05.2]} 22.
Bxb7 {[%clk 0:01:21.6]} 22... Rb8 {[%clk 0:00:59.2]} 23. a6 {[%clk 0:01:13.3]}
23... Bb3 {[%clk 0:00:51.8]} 24. Nb5 {[%clk 0:01:09.5]} 24... Nb6 {[%clk
0:00:43.6]} 25. Nxa7 {[%clk 0:01:08.4]} 1-0

[Event "Late-Titled-Tuesday-Blitz-June-25-2024"]
[Site "Chess.com"]
[Date "2024.06.25"]
[Round "4"]
[White "kinga2008"]
[Black "Sl4werThanYou"]
[Result "1-0"]
[WhiteElo "2538"]
[BlackElo "2689"]
[TimeControl "180+1"]
[EndTime "14:35:23 PDT"]
[Termination "kinga2008 won by checkmate"]

1. e4 {[%clk 0:02:55]} 1... c5 {[%clk 0:02:59.6]} 2. Nf3 {[%clk 0:02:54.7]} 2...
d6 {[%clk 0:02:59.9]} 3. c3 {[%clk 0:02:54.5]} 3... Nf6 {[%clk 0:02:59.2]} 4.
Bd3 {[%clk 0:02:55.4]} 4... g6 {[%clk 0:02:47.9]} 5. O-O {[%clk 0:02:54.9]} 5...
Bg7 {[%clk 0:02:48.5]} 6. Bc2 {[%clk 0:02:49.7]} 6... O-O {[%clk 0:02:46.4]} 7.
h3 {[%clk 0:02:50.3]} 7... Nc6 {[%clk 0:02:46.5]} 8. d4 {[%clk 0:02:48.6]} 8...
cxd4 {[%clk 0:02:46.8]} 9. cxd4 {[%clk 0:02:49.5]} 9... Nb4 {[%clk 0:02:41.9]}
10. Nc3 {[%clk 0:02:49.1]} 10... Nxc2 {[%clk 0:02:31.3]} 11. Qxc2 {[%clk
0:02:50]} 11... b6 {[%clk 0:02:28.7]} 12. Bg5 {[%clk 0:02:49.1]} 12... Bb7
{[%clk 0:02:28.9]} 13. Rfe1 {[%clk 0:02:46.9]} 13... Rc8 {[%clk 0:02:26.1]} 14.
Rad1 {[%clk 0:02:46]} 14... a6 {[%clk 0:02:22.1]} 15. Qb3 {[%clk 0:02:36.3]}
15... h6 {[%clk 0:02:19.9]} 16. Bh4 {[%clk 0:02:30.2]} 16... g5 {[%clk
0:02:18.7]} 17. Bg3 {[%clk 0:02:29.8]} 17... Nh5 {[%clk 0:02:18.9]} 18. Bh2
{[%clk 0:02:25.6]} 18... b5 {[%clk 0:02:17.9]} 19. Re3 {[%clk 0:02:12.7]} 19...
Qc7 {[%clk 0:02:05.8]} 20. e5 {[%clk 0:02:03.8]} 20... dxe5 {[%clk 0:02:01]} 21.
Nxe5 {[%clk 0:02:01.6]} 21... Nf4 {[%clk 0:01:57.9]} 22. Bxf4 {[%clk 0:01:41.6]}
22... gxf4 {[%clk 0:01:58.8]} 23. Ree1 {[%clk 0:01:33.1]} 23... e6 {[%clk
0:01:54.5]} 24. Qb4 {[%clk 0:01:16.8]} 24... Kh8 {[%clk 0:01:49.2]} 25. Ne4
{[%clk 0:01:10.6]} 25... Rg8 {[%clk 0:01:45.7]} 26. Nd6 {[%clk 0:01:04.9]} 26...
Bxe5 {[%clk 0:01:45.2]} 27. dxe5 {[%clk 0:00:47.8]} 27... Rxg2+ {[%clk
0:01:29.4]} 28. Kf1 {[%clk 0:00:47]} 28... Rcg8 {[%clk 0:01:24.5]} 29. Qxf4
{[%clk 0:00:46.5]} 29... Qc2 {[%clk 0:01:13.1]} 30. Qxh6+ {[%clk 0:00:43.4]}
30... Qh7 {[%clk 0:01:09.6]} 31. Nxf7# {[%clk 0:00:43.1]} 1-0

[Event "Late-Titled-Tuesday-Blitz-June-25-2024"]
[Site "Chess.com"]
[Date "2024.06.25"]
[Round "4"]
[White "JackRodgers"]
[Black "UnTucopalaTimba"]
[Result "1-0"]
[WhiteElo "2528"]
[BlackElo "2137"]
[TimeControl "180+1"]
[EndTime "14:35:24 PDT"]
[Termination "JackRodgers won by resignation"]

1. d4 {[%clk 0:03:00.9]} 1... Nf6 {[%clk 0:02:59.6]} 2. Bg5 {[%clk 0:03:00]}
2... e6 {[%clk 0:02:59.1]} 3. e4 {[%clk 0:02:59.5]} 3... h6 {[%clk 0:02:58.4]}
4. Bxf6 {[%clk 0:02:58.9]} 4... Qxf6 {[%clk 0:02:58.6]} 5. c3 {[%clk 0:02:54.3]}
5... d5 {[%clk 0:02:58.3]} 6. Bd3 {[%clk 0:02:49.1]} 6... c6 {[%clk 0:02:51.8]}
7. Ne2 {[%clk 0:02:44.1]} 7... dxe4 {[%clk 0:02:49.6]} 8. Bxe4 {[%clk
0:02:44.1]} 8... Nd7 {[%clk 0:02:48.8]} 9. O-O {[%clk 0:02:42.5]} 9... Bd6
{[%clk 0:02:45.5]} 10. f4 {[%clk 0:02:42]} 10... Nb6 {[%clk 0:02:43.4]} 11. Nd2
{[%clk 0:02:42]} 11... Bc7 {[%clk 0:02:37.1]} 12. Nf3 {[%clk 0:02:40.8]} 12...
O-O {[%clk 0:02:22.5]} 13. Ne5 {[%clk 0:02:40.5]} 13... Rd8 {[%clk 0:02:13.2]}
14. Ng3 {[%clk 0:02:38.1]} 14... c5 {[%clk 0:02:10.2]} 15. Nh5 {[%clk
0:02:38.1]} 15... Qe7 {[%clk 0:02:06.5]} 16. Nxg7 {[%clk 0:02:14]} 16... f5
{[%clk 0:01:54.3]} 17. Rf3 {[%clk 0:01:40.2]} 17... Bxe5 {[%clk 0:01:49.3]} 18.
fxe5 {[%clk 0:01:34.7]} 18... fxe4 {[%clk 0:01:32.7]} 19. Rg3 {[%clk 0:01:32.3]}
19... Kh7 {[%clk 0:01:31.4]} 20. Qg4 {[%clk 0:01:24.7]} 20... Qg5 {[%clk
0:01:17.6]} 21. Qxe4+ {[%clk 0:01:23.1]} 21... Kxg7 {[%clk 0:01:10.6]} 22. Rxg5+
{[%clk 0:01:21.9]} 22... hxg5 {[%clk 0:01:10.7]} 23. Rf1 {[%clk 0:01:19.1]}
23... Nd5 {[%clk 0:01:05.3]} 24. Qf3 {[%clk 0:01:12.9]} 24... Nf4 {[%clk
0:00:58.5]} 25. g3 {[%clk 0:01:08.6]} 25... Rf8 {[%clk 0:00:54.7]} 26. gxf4
{[%clk 0:01:04.6]} 26... Rxf4 {[%clk 0:00:54.6]} 27. Qh5 {[%clk 0:01:03.7]}
27... Rxf1+ {[%clk 0:00:54.5]} 28. Kxf1 {[%clk 0:01:04.6]} 28... Bd7 {[%clk
0:00:54.4]} 29. Qxg5+ {[%clk 0:01:03.5]} 1-0

[Event "Late-Titled-Tuesday-Blitz-June-25-2024"]
[Site "Chess.com"]
[Date "2024.06.25"]
[Round "4"]
[White "maracayo"]
[Black "Navyblue1"]
[Result "1-0"]
[WhiteElo "2395"]
[BlackElo "2165"]
[TimeControl "180+1"]
[EndTime "14:35:35 PDT"]
[Termination "maracayo won by resignation"]

1. e4 {[%clk 0:03:00.9]} 1... c5 {[%clk 0:02:57.9]} 2. Nf3 {[%clk 0:02:58.7]}
2... d6 {[%clk 0:02:57.3]} 3. d4 {[%clk 0:02:56.4]} 3... cxd4 {[%clk 0:02:58.2]}
4. Nxd4 {[%clk 0:02:56]} 4... Nf6 {[%clk 0:02:58.8]} 5. Nc3 {[%clk 0:02:54.8]}
5... a6 {[%clk 0:02:59]} 6. Bg5 {[%clk 0:02:53.5]} 6... Nbd7 {[%clk 0:02:56.9]}
7. Qd2 {[%clk 0:02:49.5]} 7... e6 {[%clk 0:02:24.5]} 8. O-O-O {[%clk 0:02:46.7]}
8... Be7 {[%clk 0:02:18.9]} 9. f4 {[%clk 0:02:44.6]} 9... h6 {[%clk 0:02:14.8]}
10. Bh4 {[%clk 0:02:40.1]} 10... Qc7 {[%clk 0:01:58]} 11. Kb1 {[%clk 0:02:33.7]}
11... Nxe4 {[%clk 0:01:37.7]} 12. Nxe4 {[%clk 0:02:34.6]} 12... Bxh4 {[%clk
0:01:36.8]} 13. Nxe6 {[%clk 0:02:20.3]} 13... fxe6 {[%clk 0:01:34.1]} 14. Nxd6+
{[%clk 0:02:20.2]} 14... Ke7 {[%clk 0:01:28.8]} 15. f5 {[%clk 0:01:31]} 15... e5
{[%clk 0:01:13]} 16. Qd5 {[%clk 0:01:24.7]} 16... Rf8 {[%clk 0:01:00.9]} 17.
Qe6+ {[%clk 0:01:18.2]} 17... Kd8 {[%clk 0:01:00.1]} 18. Bc4 {[%clk 0:00:57.7]}
18... Qc5 {[%clk 0:00:30.5]} 19. Nxb7+ {[%clk 0:00:54.4]} 1-0

[Event "Late-Titled-Tuesday-Blitz-June-25-2024"]
[Site "Chess.com"]
[Date "2024.06.25"]
[Round "4"]
[White "jlf287"]
[Black "Mihajlovskij"]
[Result "1-0"]
[WhiteElo "2488"]
[BlackElo "2293"]
[TimeControl "180+1"]
[EndTime "14:35:41 PDT"]
[Termination "jlf287 won by resignation"]

1. Nf3 {[%clk 0:03:00.9]} 1... Nf6 {[%clk 0:03:00.2]} 2. g3 {[%clk 0:03:00.3]}
2... g6 {[%clk 0:03:00.8]} 3. Bg2 {[%clk 0:03:00.2]} 3... Bg7 {[%clk 0:03:01.7]}
4. O-O {[%clk 0:03:00.2]} 4... O-O {[%clk 0:03:02.4]} 5. c4 {[%clk 0:03:00.3]}
5... d6 {[%clk 0:03:01.7]} 6. d4 {[%clk 0:02:59.3]} 6... c5 {[%clk 0:03:01.9]}
7. d5 {[%clk 0:02:56.4]} 7... b5 {[%clk 0:03:01.4]} 8. cxb5 {[%clk 0:02:55.3]}
8... a6 {[%clk 0:03:02.3]} 9. bxa6 {[%clk 0:02:49]} 9... Nxa6 {[%clk 0:03:03.2]}
10. Nc3 {[%clk 0:02:48.3]} 10... Nc7 {[%clk 0:03:03.5]} 11. Re1 {[%clk 0:02:44]}
11... Ba6 {[%clk 0:02:59.8]} 12. Nd2 {[%clk 0:02:38.8]} 12... Nb5 {[%clk
0:02:55.3]} 13. Nxb5 {[%clk 0:02:21.8]} 13... Bxb5 {[%clk 0:02:56.2]} 14. Qc2
{[%clk 0:02:20.3]} 14... Nd7 {[%clk 0:02:47.3]} 15. a4 {[%clk 0:02:14.7]} 15...
Ba6 {[%clk 0:02:44.2]} 16. Ra3 {[%clk 0:02:10]} 16... Rb8 {[%clk 0:02:15.7]} 17.
Rb3 {[%clk 0:02:00.2]} 17... Rxb3 {[%clk 0:02:13.6]} 18. Qxb3 {[%clk 0:01:56.9]}
18... Qc7 {[%clk 0:02:10.7]} 19. Nc4 {[%clk 0:01:53.3]} 19... Rb8 {[%clk
0:02:10.4]} 20. Qc2 {[%clk 0:01:53.9]} 20... Bxc4 {[%clk 0:02:05]} 21. Qxc4
{[%clk 0:01:53.7]} 21... Qa5 {[%clk 0:02:02.3]} 22. Rd1 {[%clk 0:01:46.9]} 22...
Rb4 {[%clk 0:02:02.1]} 23. Qc2 {[%clk 0:01:08.3]} 23... Qxa4 {[%clk 0:02:01.6]}
24. Qxa4 {[%clk 0:01:05.1]} 24... Rxa4 {[%clk 0:02:02.5]} 25. Bg5 {[%clk
0:00:55.3]} 25... f6 {[%clk 0:02:02.1]} 26. Bd2 {[%clk 0:00:53.4]} 26... f5
{[%clk 0:01:58.4]} 27. Bc3 {[%clk 0:00:52.5]} 27... Bxc3 {[%clk 0:01:57.3]} 28.
bxc3 {[%clk 0:00:53.4]} 28... Rc4 {[%clk 0:01:56.7]} 29. Rc1 {[%clk 0:00:44.1]}
29... Nb6 {[%clk 0:01:56.9]} 30. Rb1 {[%clk 0:00:31.5]} 30... Na4 {[%clk
0:01:56.1]} 31. Rb7 {[%clk 0:00:28.5]} 31... Kf7 {[%clk 0:01:56]} 32. e3 {[%clk
0:00:18]} 32... Rb4 {[%clk 0:01:48.9]} 33. cxb4 {[%clk 0:00:17.5]} 33... c4
{[%clk 0:01:48.9]} 34. Rc7 {[%clk 0:00:16.5]} 34... c3 {[%clk 0:01:49.2]} 35.
Bf1 {[%clk 0:00:16.4]} 35... c2 {[%clk 0:01:48.1]} 36. Rxc2 {[%clk 0:00:15.9]}
1-0

[Event "Late-Titled-Tuesday-Blitz-June-25-2024"]
[Site "Chess.com"]
[Date "2024.06.25"]
[Round "4"]
[White "Chaubunagungamaug1"]
[Black "MITerryble"]
[Result "0-1"]
[WhiteElo "2567"]
[BlackElo "2978"]
[TimeControl "180+1"]
[EndTime "14:35:49 PDT"]
[Termination "MITerryble won by resignation"]

1. d4 {[%clk 0:03:00.9]} 1... e6 {[%clk 0:02:56.9]} 2. c4 {[%clk 0:02:58.4]}
2... Bb4+ {[%clk 0:02:56.5]} 3. Nd2 {[%clk 0:02:57.3]} 3... Nf6 {[%clk
0:02:55.7]} 4. a3 {[%clk 0:02:55.9]} 4... Bxd2+ {[%clk 0:02:56]} 5. Qxd2 {[%clk
0:02:56.7]} 5... O-O {[%clk 0:02:56.2]} 6. Nf3 {[%clk 0:02:56.1]} 6... b6 {[%clk
0:02:56.2]} 7. e3 {[%clk 0:02:55.8]} 7... Bb7 {[%clk 0:02:56.6]} 8. Be2 {[%clk
0:02:55.8]} 8... d6 {[%clk 0:02:56.6]} 9. O-O {[%clk 0:02:55.9]} 9... Nbd7
{[%clk 0:02:57.3]} 10. b4 {[%clk 0:02:56.3]} 10... a5 {[%clk 0:02:57.1]} 11. Bb2
{[%clk 0:02:56.3]} 11... Qe7 {[%clk 0:02:57.6]} 12. Qc2 {[%clk 0:02:46.4]} 12...
Be4 {[%clk 0:02:56.8]} 13. Qc3 {[%clk 0:02:45.2]} 13... Rfb8 {[%clk 0:02:53.4]}
14. Nd2 {[%clk 0:02:42.1]} 14... Bb7 {[%clk 0:02:53.9]} 15. Qc2 {[%clk
0:02:39.2]} 15... e5 {[%clk 0:02:53.5]} 16. d5 {[%clk 0:02:29.3]} 16... Nf8
{[%clk 0:02:48.5]} 17. Rfc1 {[%clk 0:02:18.9]} 17... Ng6 {[%clk 0:02:47.8]} 18.
Bd3 {[%clk 0:02:14]} 18... Bc8 {[%clk 0:02:26.5]} 19. Ne4 {[%clk 0:01:55.7]}
19... Nxe4 {[%clk 0:02:22.7]} 20. Bxe4 {[%clk 0:01:56.6]} 20... Qg5 {[%clk
0:02:22.8]} 21. c5 {[%clk 0:01:10.4]} 21... bxc5 {[%clk 0:02:23.7]} 22. bxc5
{[%clk 0:01:10.9]} 22... f5 {[%clk 0:02:23.9]} 23. Bd3 {[%clk 0:00:42.6]} 23...
Nh4 {[%clk 0:02:24.2]} 24. Bf1 {[%clk 0:00:37.3]} 24... f4 {[%clk 0:02:24.4]}
25. exf4 {[%clk 0:00:36.3]} 25... exf4 {[%clk 0:02:24.6]} 26. cxd6 {[%clk
0:00:30.9]} 26... cxd6 {[%clk 0:02:23.9]} 27. Kh1 {[%clk 0:00:27.3]} 27... Bf5
{[%clk 0:02:21.1]} 28. Qc3 {[%clk 0:00:23.9]} 28... Be4 {[%clk 0:01:57]} 29. f3
{[%clk 0:00:24]} 29... Bxd5 {[%clk 0:01:57.5]} 30. Qd4 {[%clk 0:00:23.1]} 30...
Nxf3 {[%clk 0:01:54.7]} 31. Qf2 {[%clk 0:00:23.3]} 31... Qh5 {[%clk 0:01:47.1]}
32. gxf3 {[%clk 0:00:18.2]} 32... Qxf3+ {[%clk 0:01:47.1]} 33. Qxf3 {[%clk
0:00:17.6]} 33... Bxf3+ {[%clk 0:01:48]} 34. Bg2 {[%clk 0:00:16.7]} 34... Bxg2+
{[%clk 0:01:47.9]} 35. Kxg2 {[%clk 0:00:17.6]} 35... Rxb2+ {[%clk 0:01:48.1]}
36. Kf3 {[%clk 0:00:18.4]} 36... Rxh2 {[%clk 0:01:48.2]} 37. Kxf4 {[%clk
0:00:18.6]} 37... Re8 {[%clk 0:01:42.7]} 38. Rc7 {[%clk 0:00:16.5]} 38... Rf2+
{[%clk 0:01:42.9]} 39. Kg3 {[%clk 0:00:16.8]} 39... Rf6 {[%clk 0:01:42.9]} 40.
Rb1 {[%clk 0:00:15.8]} 40... Ref8 {[%clk 0:01:39.2]} 41. Rbb7 {[%clk 0:00:14.8]}
41... Rg6+ {[%clk 0:01:40.1]} 42. Kh2 {[%clk 0:00:14.2]} 42... h6 {[%clk
0:01:41]} 43. Rd7 {[%clk 0:00:13.8]} 43... Rf5 {[%clk 0:01:40.7]} 0-1

[Event "Late-Titled-Tuesday-Blitz-June-25-2024"]
[Site "Chess.com"]
[Date "2024.06.25"]
[Round "4"]
[White "ExchangeAB"]
[Black "Alex_Sahakyan2006"]
[Result "0-1"]
[WhiteElo "2545"]
[BlackElo "2732"]
[TimeControl "180+1"]
[EndTime "14:35:50 PDT"]
[Termination "Alex_Sahakyan2006 won by resignation"]

1. d4 {[%clk 0:03:00.9]} 1... Nf6 {[%clk 0:02:58.1]} 2. Nf3 {[%clk 0:03:01.4]}
2... g6 {[%clk 0:02:58.6]} 3. c4 {[%clk 0:03:01.5]} 3... Bg7 {[%clk 0:02:59.3]}
4. g3 {[%clk 0:03:02]} 4... O-O {[%clk 0:02:59.8]} 5. Bg2 {[%clk 0:03:02.6]}
5... d6 {[%clk 0:03:00.5]} 6. O-O {[%clk 0:03:02.9]} 6... Nc6 {[%clk 0:03:01.1]}
7. Nc3 {[%clk 0:03:03.3]} 7... a6 {[%clk 0:03:01.8]} 8. b3 {[%clk 0:03:03.1]}
8... Rb8 {[%clk 0:03:01.4]} 9. Bb2 {[%clk 0:03:02.2]} 9... b5 {[%clk 0:03:00.7]}
10. cxb5 {[%clk 0:02:47.9]} 10... axb5 {[%clk 0:03:01.6]} 11. Re1 {[%clk
0:02:44.5]} 11... b4 {[%clk 0:03:00.4]} 12. Na4 {[%clk 0:02:43.1]} 12... e5
{[%clk 0:02:47.9]} 13. dxe5 {[%clk 0:02:41]} 13... Ng4 {[%clk 0:02:46.8]} 14.
Rc1 {[%clk 0:02:35.6]} 14... Ncxe5 {[%clk 0:02:42.7]} 15. Nxe5 {[%clk
0:02:35.4]} 15... Nxe5 {[%clk 0:02:43.6]} 16. f4 {[%clk 0:02:27.6]} 16... Ng4
{[%clk 0:02:35.9]} 17. Bxg7 {[%clk 0:02:26.9]} 17... Kxg7 {[%clk 0:02:36.8]} 18.
Qd4+ {[%clk 0:02:27.1]} 18... Nf6 {[%clk 0:02:35.6]} 19. e4 {[%clk 0:02:25.7]}
19... c5 {[%clk 0:02:26.2]} 20. Qa1 {[%clk 0:02:16.3]} 20... Be6 {[%clk
0:02:24.3]} 21. e5 {[%clk 0:02:15.8]} 21... dxe5 {[%clk 0:02:23]} 22. Nxc5
{[%clk 0:02:09.6]} 22... exf4 {[%clk 0:02:12.5]} 23. Rxe6 {[%clk 0:02:09.1]}
23... Rc8 {[%clk 0:01:43.6]} 24. Ree1 {[%clk 0:01:33.6]} 24... Qb6 {[%clk
0:01:25.9]} 25. Qd4 {[%clk 0:01:23.1]} 25... Rfd8 {[%clk 0:01:25.2]} 26. Qf2
{[%clk 0:00:38.2]} 26... Ng4 {[%clk 0:01:20.9]} 27. Qb2+ {[%clk 0:00:35]} 27...
Kg8 {[%clk 0:01:16.3]} 28. Qc2 {[%clk 0:00:18.8]} 28... fxg3 {[%clk 0:01:16.2]}
29. hxg3 {[%clk 0:00:18.7]} 29... Qd6 {[%clk 0:01:14.1]} 30. Ne4 {[%clk
0:00:15.9]} 30... Qd4+ {[%clk 0:01:12.5]} 0-1

[Event "Late-Titled-Tuesday-Blitz-June-25-2024"]
[Site "Chess.com"]
[Date "2024.06.25"]
[Round "4"]
[White "Piriflillo"]
[Black "glucolisis04"]
[Result "1-0"]
[WhiteElo "2516"]
[BlackElo "2293"]
[TimeControl "180+1"]
[EndTime "14:35:53 PDT"]
[Termination "Piriflillo won by resignation"]

1. Nf3 {[%clk 0:03:00.9]} 1... d5 {[%clk 0:02:59.6]} 2. b3 {[%clk 0:03:01.1]}
2... Nf6 {[%clk 0:02:59.4]} 3. Bb2 {[%clk 0:03:01.3]} 3... Bf5 {[%clk
0:02:59.9]} 4. e3 {[%clk 0:03:01.2]} 4... e6 {[%clk 0:03:00.2]} 5. Ne5 {[%clk
0:03:01.5]} 5... c6 {[%clk 0:02:58.5]} 6. f4 {[%clk 0:03:00.7]} 6... Nfd7 {[%clk
0:02:51.5]} 7. d3 {[%clk 0:02:44.8]} 7... Nxe5 {[%clk 0:02:49.3]} 8. Bxe5 {[%clk
0:02:44.3]} 8... Nd7 {[%clk 0:02:46.9]} 9. Bb2 {[%clk 0:02:43.8]} 9... Bb4+
{[%clk 0:02:44.4]} 10. Nd2 {[%clk 0:02:42]} 10... Qa5 {[%clk 0:02:29.8]} 11. a3
{[%clk 0:02:41.7]} 11... Bxd2+ {[%clk 0:02:22.5]} 12. Qxd2 {[%clk 0:02:42.6]}
12... Qxd2+ {[%clk 0:02:22.4]} 13. Kxd2 {[%clk 0:02:43.1]} 13... f6 {[%clk
0:02:22.9]} 14. Be2 {[%clk 0:02:40.7]} 14... Kf7 {[%clk 0:02:19.9]} 15. g4
{[%clk 0:02:36.3]} 15... Bg6 {[%clk 0:02:19.2]} 16. h4 {[%clk 0:02:35.4]} 16...
h6 {[%clk 0:02:17.7]} 17. h5 {[%clk 0:02:35.5]} 17... Bh7 {[%clk 0:02:17.6]} 18.
Rag1 {[%clk 0:02:36.1]} 18... e5 {[%clk 0:02:07.4]} 19. g5 {[%clk 0:02:36.1]}
19... fxg5 {[%clk 0:02:07]} 20. fxg5 {[%clk 0:02:35.6]} 20... Bf5 {[%clk
0:02:00.5]} 21. Rf1 {[%clk 0:02:21.6]} 21... Ke6 {[%clk 0:02:00.3]} 22. Rhg1
{[%clk 0:02:21.9]} 22... Rhg8 {[%clk 0:01:52.1]} 23. g6 {[%clk 0:02:16.4]} 23...
Raf8 {[%clk 0:01:50]} 24. e4 {[%clk 0:02:08.9]} 24... dxe4 {[%clk 0:01:46.4]}
25. dxe4 {[%clk 0:02:08.8]} 25... Bxe4 {[%clk 0:01:46.6]} 26. Bg4+ {[%clk
0:02:02.8]} 26... Bf5 {[%clk 0:01:42.1]} 27. Rxf5 {[%clk 0:01:57.7]} 27... Rxf5
{[%clk 0:01:42.1]} 28. Rf1 {[%clk 0:01:53.5]} 28... Rf8 {[%clk 0:01:42.5]} 29.
Ke3 {[%clk 0:01:48.4]} 29... Nb6 {[%clk 0:01:38.6]} 30. Ke4 {[%clk 0:01:45.4]}
30... Nd5 {[%clk 0:01:35.3]} 31. Rxf5 {[%clk 0:01:37.6]} 31... Nf6+ {[%clk
0:01:31.3]} 32. Rxf6+ {[%clk 0:01:38.2]} 32... Kxf6 {[%clk 0:01:31.3]} 33. Bxe5+
{[%clk 0:01:38.8]} 33... Kg5 {[%clk 0:01:31.1]} 34. Be2 {[%clk 0:01:26.9]} 34...
Rf2 {[%clk 0:01:26.5]} 35. Ke3 {[%clk 0:01:23.4]} 35... Rf8 {[%clk 0:01:12.8]}
36. Bxg7 {[%clk 0:01:20.4]} 36... Re8+ {[%clk 0:01:11.6]} 37. Kf2 {[%clk
0:01:17.6]} 37... Rg8 {[%clk 0:00:46.3]} 38. Bc3 {[%clk 0:01:15.4]} 38... Kh4
{[%clk 0:00:39]} 39. g7 {[%clk 0:01:13.9]} 39... Kg5 {[%clk 0:00:37.7]} 40. Bc4
{[%clk 0:01:13.3]} 1-0

[Event "Late-Titled-Tuesday-Blitz-June-25-2024"]
[Site "Chess.com"]
[Date "2024.06.25"]
[Round "4"]
[White "schondeln"]
[Black "Niktlt"]
[Result "0-1"]
[WhiteElo "2382"]
[BlackElo "2568"]
[TimeControl "180+1"]
[EndTime "14:35:58 PDT"]
[Termination "Niktlt won on time"]

1. e4 {[%clk 0:03:00.9]} 1... c5 {[%clk 0:02:59.4]} 2. Nf3 {[%clk 0:03:00.6]}
2... d6 {[%clk 0:02:59.5]} 3. Bc4 {[%clk 0:03:00.4]} 3... Nf6 {[%clk 0:02:59]}
4. d3 {[%clk 0:03:00.5]} 4... e6 {[%clk 0:02:59.2]} 5. O-O {[%clk 0:03:00.3]}
5... Be7 {[%clk 0:02:59.7]} 6. Bb3 {[%clk 0:02:59.7]} 6... d5 {[%clk 0:02:59.5]}
7. Nbd2 {[%clk 0:02:59.1]} 7... O-O {[%clk 0:02:59.8]} 8. c3 {[%clk 0:02:59]}
8... Nc6 {[%clk 0:03:00.3]} 9. Re1 {[%clk 0:02:58.7]} 9... b6 {[%clk 0:03:00.7]}
10. Qe2 {[%clk 0:02:56]} 10... Ba6 {[%clk 0:02:59.4]} 11. Bc2 {[%clk 0:02:47]}
11... dxe4 {[%clk 0:02:54.4]} 12. Nxe4 {[%clk 0:02:46.6]} 12... Nxe4 {[%clk
0:02:51.3]} 13. Qxe4 {[%clk 0:02:45.8]} 13... Qd5 {[%clk 0:02:49.4]} 14. d4
{[%clk 0:02:18.7]} 14... Qxe4 {[%clk 0:02:45.2]} 15. Bxe4 {[%clk 0:02:17.7]}
15... Rac8 {[%clk 0:02:45.2]} 16. d5 {[%clk 0:02:04.6]} 16... exd5 {[%clk
0:02:41.3]} 17. Bxd5 {[%clk 0:02:05.5]} 17... Bf6 {[%clk 0:02:38.5]} 18. Bg5
{[%clk 0:02:04.4]} 18... Bxg5 {[%clk 0:02:32.7]} 19. Nxg5 {[%clk 0:02:05.3]}
19... h6 {[%clk 0:02:28.4]} 20. Ne4 {[%clk 0:01:52.4]} 20... Ne5 {[%clk
0:02:06.1]} 21. Nd6 {[%clk 0:01:38.2]} 21... Rcd8 {[%clk 0:01:58.5]} 22. Rxe5
{[%clk 0:01:35.8]} 22... Rxd6 {[%clk 0:01:58.1]} 23. Rae1 {[%clk 0:01:25.7]}
23... Rfd8 {[%clk 0:01:47.3]} 24. c4 {[%clk 0:01:06.6]} 24... b5 {[%clk
0:01:40]} 25. b3 {[%clk 0:00:27.6]} 25... bxc4 {[%clk 0:01:38.5]} 26. bxc4
{[%clk 0:00:28]} 26... Rb8 {[%clk 0:01:36.1]} 27. Re7 {[%clk 0:00:20.2]} 27...
Rf6 {[%clk 0:01:27.1]} 28. Rxa7 {[%clk 0:00:16.3]} 28... Rb2 {[%clk 0:01:24.9]}
29. f3 {[%clk 0:00:03.6]} 29... Rxa2 {[%clk 0:01:21.1]} 30. h4 {[%clk
0:00:02.6]} 30... Rd2 {[%clk 0:01:16]} 0-1